[Event "Late-Titled-Tuesday-Blitz-July-09-2024"]
[Site "Chess.com"]
[Date "2024.07.09"]
[Round "9"]
[White "MaxLeto"]
[Black "PawnEatingZombie"]
[Result "1-0"]
[WhiteElo "2465"]
[BlackElo "2267"]
[TimeControl "180+1"]
[EndTime "15:44:37 PDT"]
[Termination "MaxLeto won by resignation"]

1. b3 {[%clk 0:03:00.9]} 1... c5 {[%clk 0:02:57]} 2. Bb2 {[%clk 0:03:01.8]} 2...
Nc6 {[%clk 0:02:57.2]} 3. h3 {[%clk 0:03:02.3]} 3... e5 {[%clk 0:02:56.8]} 4. g4
{[%clk 0:03:02.7]} 4... d6 {[%clk 0:02:46.2]} 5. Bg2 {[%clk 0:03:01.7]} 5...
Nge7 {[%clk 0:02:44.8]} 6. c4 {[%clk 0:03:02.1]} 6... Ng6 {[%clk 0:02:43.8]} 7.
e3 {[%clk 0:02:56.8]} 7... Nh4 {[%clk 0:02:43.5]} 8. Be4 {[%clk 0:02:55.9]} 8...
Be7 {[%clk 0:02:39]} 9. Nc3 {[%clk 0:02:44.7]} 9... Be6 {[%clk 0:02:38.5]} 10.
Nge2 {[%clk 0:02:00.1]} 10... Qd7 {[%clk 0:02:38.1]} 11. d4 {[%clk 0:01:59.4]}
11... exd4 {[%clk 0:02:31.9]} 12. exd4 {[%clk 0:01:59.5]} 12... f5 {[%clk
0:02:10.9]} 13. gxf5 {[%clk 0:01:48.1]} 13... Bxf5 {[%clk 0:02:11]} 14. dxc5
{[%clk 0:01:14]} 14... dxc5 {[%clk 0:01:52.7]} 15. Qxd7+ {[%clk 0:01:09.1]}
15... Bxd7 {[%clk 0:01:50.8]} 16. Nd5 {[%clk 0:01:03.9]} 16... Bd6 {[%clk
0:01:34.1]} 17. Bxg7 {[%clk 0:00:57.8]} 17... O-O-O {[%clk 0:01:25.6]} 18. Bxh8
{[%clk 0:00:54]} 18... Rxh8 {[%clk 0:01:26.5]} 19. O-O-O {[%clk 0:00:43.9]}
19... Be5 {[%clk 0:01:20.2]} 20. f4 {[%clk 0:00:37.6]} 20... Bd4 {[%clk
0:01:19.2]} 21. Nxd4 {[%clk 0:00:29.2]} 21... Nxd4 {[%clk 0:01:19.2]} 22. Rde1
{[%clk 0:00:24.1]} 22... Rf8 {[%clk 0:01:18.3]} 23. Bxh7 {[%clk 0:00:20.6]}
23... Kd8 {[%clk 0:00:58.2]} 24. Rhf1 {[%clk 0:00:13.6]} 24... Ndf5 {[%clk
0:00:57.8]} 25. Bxf5 {[%clk 0:00:12.2]} 25... Bxf5 {[%clk 0:00:58.7]} 26. Re7
{[%clk 0:00:10]} 26... Rg8 {[%clk 0:00:52.9]} 27. Rxb7 {[%clk 0:00:07.5]} 27...
Rg2 {[%clk 0:00:52]} 28. Rxa7 {[%clk 0:00:06.1]} 28... Rc2+ {[%clk 0:00:51.7]}
29. Kd1 {[%clk 0:00:06.2]} 29... Ng2 {[%clk 0:00:45.1]} 30. Rg1 {[%clk
0:00:03.7]} 30... Be4 {[%clk 0:00:42.8]} 31. Ra8+ {[%clk 0:00:01.7]} 31... Kd7
{[%clk 0:00:39.3]} 32. Ra7+ {[%clk 0:00:02.6]} 32... Kc8 {[%clk 0:00:37.4]} 33.
Rxg2 {[%clk 0:00:02.8]} 33... Rxg2 {[%clk 0:00:35.6]} 34. Ra5 {[%clk 0:00:02.8]}
34... Bf3+ {[%clk 0:00:25.8]} 35. Ke1 {[%clk 0:00:02.1]} 35... Re2+ {[%clk
0:00:23.9]} 36. Kf1 {[%clk 0:00:02.3]} 36... Rb2 {[%clk 0:00:21.9]} 37. Rxc5+
{[%clk 0:00:02.1]} 37... Kd7 {[%clk 0:00:21.3]} 38. Ra5 {[%clk 0:00:03]} 38...
Kd6 {[%clk 0:00:20.6]} 39. h4 {[%clk 0:00:02.9]} 39... Rh2 {[%clk 0:00:18.8]}
40. Ne3 {[%clk 0:00:02.1]} 40... Kc6 {[%clk 0:00:16.7]} 41. Nf5 {[%clk
0:00:02.1]} 41... Rb2 {[%clk 0:00:15.5]} 42. Nd4+ {[%clk 0:00:02.1]} 42... Kb6
{[%clk 0:00:14.6]} 43. Nxf3 {[%clk 0:00:03]} 43... Kxa5 {[%clk 0:00:14.6]} 44.
f5 {[%clk 0:00:01.6]} 44... Rxa2 {[%clk 0:00:13]} 45. f6 {[%clk 0:00:02.2]}
45... Kb4 {[%clk 0:00:13.3]} 46. Ng5 {[%clk 0:00:01.7]} 46... Ra8 {[%clk
0:00:13.6]} 47. f7 {[%clk 0:00:02]} 47... Rf8 {[%clk 0:00:13.6]} 48. Kf2 {[%clk
0:00:02]} 48... Kxb3 {[%clk 0:00:13.9]} 49. Kf3 {[%clk 0:00:02.1]} 49... Kxc4
{[%clk 0:00:14.5]} 50. Kf4 {[%clk 0:00:03]} 50... Kd5 {[%clk 0:00:15]} 51. Kf5
{[%clk 0:00:03.7]} 51... Kd6 {[%clk 0:00:15.1]} 52. Kf6 {[%clk 0:00:04.4]} 52...
Rh8 {[%clk 0:00:13.1]} 53. Kg7 {[%clk 0:00:03.3]} 53... Rb8 {[%clk 0:00:11.5]}
54. f8=Q+ {[%clk 0:00:03.5]} 54... Rxf8 {[%clk 0:00:11.4]} 55. Kxf8 {[%clk
0:00:04.4]} 55... Ke5 {[%clk 0:00:11.9]} 56. Kg7 {[%clk 0:00:05.3]} 56... Kf5
{[%clk 0:00:12.4]} 57. h5 {[%clk 0:00:06]} 57... Kxg5 {[%clk 0:00:12.5]} 58. h6
{[%clk 0:00:06.9]} 58... Kf5 {[%clk 0:00:12.6]} 59. h7 {[%clk 0:00:07.8]} 59...
Ke5 {[%clk 0:00:13.2]} 60. h8=Q {[%clk 0:00:08.7]} 60... Kd4 {[%clk 0:00:13.8]}
61. Qh5 {[%clk 0:00:08.9]} 61... Kd3 {[%clk 0:00:14.7]} 62. Kf6 {[%clk
0:00:09.2]} 62... Kd2 {[%clk 0:00:15.6]} 63. Ke5 {[%clk 0:00:09.6]} 1-0

[Event "Late-Titled-Tuesday-Blitz-July-09-2024"]
[Site "Chess.com"]
[Date "2024.07.09"]
[Round "9"]
[White "temus_galaktionov"]
[Black "TigrVShlyape"]
[Result "1/2-1/2"]
[WhiteElo "2843"]
[BlackElo "2969"]
[TimeControl "180+1"]
[EndTime "15:44:38 PDT"]
[Termination "Game drawn by repetition"]

1. d4 {[%clk 0:02:57.6]} 1... Nf6 {[%clk 0:02:59.8]} 2. c4 {[%clk 0:02:57.4]}
2... e6 {[%clk 0:03:00.2]} 3. Nf3 {[%clk 0:02:56.9]} 3... d5 {[%clk 0:02:59.7]}
4. Nc3 {[%clk 0:02:55.7]} 4... c6 {[%clk 0:03:00.1]} 5. e3 {[%clk 0:02:55.4]}
5... Nbd7 {[%clk 0:03:00.3]} 6. Qc2 {[%clk 0:02:55.6]} 6... Bd6 {[%clk
0:03:00.7]} 7. b3 {[%clk 0:02:56]} 7... b6 {[%clk 0:03:00.7]} 8. Be2 {[%clk
0:02:56]} 8... Bb7 {[%clk 0:03:01.1]} 9. O-O {[%clk 0:02:56.6]} 9... O-O {[%clk
0:03:01.2]} 10. Bb2 {[%clk 0:02:57.2]} 10... Rc8 {[%clk 0:03:00.9]} 11. Rad1
{[%clk 0:02:55.7]} 11... Qe7 {[%clk 0:03:00]} 12. Rfe1 {[%clk 0:02:54.4]} 12...
c5 {[%clk 0:02:59.6]} 13. dxc5 {[%clk 0:02:53.4]} 13... Nxc5 {[%clk 0:02:58]}
14. cxd5 {[%clk 0:02:53.4]} 14... Nxd5 {[%clk 0:02:55.9]} 15. Nxd5 {[%clk
0:02:53.6]} 15... Bxd5 {[%clk 0:02:54.7]} 16. Rc1 {[%clk 0:02:46.6]} 16... a5
{[%clk 0:02:42.5]} 17. Red1 {[%clk 0:02:29.5]} 17... Bb7 {[%clk 0:02:35]} 18.
Qc3 {[%clk 0:02:26.3]} 18... f6 {[%clk 0:02:34.2]} 19. Qe1 {[%clk 0:02:23.6]}
19... e5 {[%clk 0:02:23.7]} 20. Nd2 {[%clk 0:02:19.6]} 20... Ne4 {[%clk
0:02:12]} 21. Nxe4 {[%clk 0:02:12.6]} 21... Bxe4 {[%clk 0:02:11.2]} 22. Bc4+
{[%clk 0:02:10]} 22... Kh8 {[%clk 0:02:10.6]} 23. Ba6 {[%clk 0:02:10.5]} 23...
Rcd8 {[%clk 0:02:03.9]} 24. Qe2 {[%clk 0:02:08.2]} 24... Bc5 {[%clk 0:02:01.5]}
25. Rxd8 {[%clk 0:02:00.5]} 25... Rxd8 {[%clk 0:02:00.9]} 26. Rd1 {[%clk
0:02:01.1]} 26... g6 {[%clk 0:02:00.3]} 27. Bc4 {[%clk 0:01:57.6]} 27... Kg7
{[%clk 0:01:59]} 28. Rd2 {[%clk 0:01:54.7]} 28... Bb4 {[%clk 0:01:55.7]} 29. Rd1
{[%clk 0:01:54.8]} 29... h5 {[%clk 0:01:54.5]} 30. f3 {[%clk 0:01:53.3]} 30...
Bc6 {[%clk 0:01:52.6]} 31. e4 {[%clk 0:01:48.2]} 31... Bc5+ {[%clk 0:01:52.4]}
32. Kf1 {[%clk 0:01:48.5]} 32... Bd4 {[%clk 0:01:51.2]} 33. Bxd4 {[%clk
0:01:38.9]} 33... exd4 {[%clk 0:01:51.3]} 34. a4 {[%clk 0:01:38.7]} 34... Qe5
{[%clk 0:01:50]} 35. g3 {[%clk 0:01:37.6]} 35... h4 {[%clk 0:01:46.6]} 36. Qf2
{[%clk 0:01:25]} 36... hxg3 {[%clk 0:01:44.5]} 37. Qxg3 {[%clk 0:01:25]} 37...
g5 {[%clk 0:01:39.5]} 38. Qxe5 {[%clk 0:01:17.1]} 38... fxe5 {[%clk 0:01:39.2]}
39. Kf2 {[%clk 0:01:15.4]} 39... Rh8 {[%clk 0:01:32.4]} 40. Kg3 {[%clk
0:01:15.2]} 40... Bd7 {[%clk 0:01:31.3]} 41. Rc1 {[%clk 0:00:57.6]} 41... Rc8
{[%clk 0:01:30.7]} 42. h4 {[%clk 0:00:49.1]} 42... gxh4+ {[%clk 0:01:28.5]} 43.
Kxh4 {[%clk 0:00:50]} 43... Kf6 {[%clk 0:01:28.6]} 44. Kg3 {[%clk 0:00:48.6]}
44... Kg5 {[%clk 0:01:22]} 45. Rh1 {[%clk 0:00:41.6]} 45... Bxa4 {[%clk
0:01:02.1]} 46. Rh7 {[%clk 0:00:40.9]} 46... Bc6 {[%clk 0:00:53.9]} 47. Re7
{[%clk 0:00:25.4]} 47... Re8 {[%clk 0:00:47.6]} 48. Rc7 {[%clk 0:00:24.6]} 48...
b5 {[%clk 0:00:39.2]} 49. Rxc6 {[%clk 0:00:20.3]} 49... bxc4 {[%clk 0:00:39.5]}
50. Rxc4 {[%clk 0:00:20.1]} 50... Rb8 {[%clk 0:00:33.4]} 51. Rc5 {[%clk
0:00:20]} 51... Kf6 {[%clk 0:00:33.5]} 52. Rxa5 {[%clk 0:00:18.3]} 52... Rxb3
{[%clk 0:00:33.5]} 53. Rd5 {[%clk 0:00:18.8]} 53... Ke6 {[%clk 0:00:32.7]} 54.
Kf2 {[%clk 0:00:18.5]} 54... Rb2+ {[%clk 0:00:32.4]} 55. Ke1 {[%clk 0:00:18.8]}
55... Rh2 {[%clk 0:00:31.2]} 56. f4 {[%clk 0:00:18]} 56... exf4 {[%clk
0:00:31.2]} 57. Rxd4 {[%clk 0:00:18.3]} 57... Ke5 {[%clk 0:00:31.9]} 58. Rd3
{[%clk 0:00:18.2]} 58... Kxe4 {[%clk 0:00:32.1]} 59. Ra3 {[%clk 0:00:18.9]}
59... f3 {[%clk 0:00:31.3]} 60. Ra8 {[%clk 0:00:18.5]} 60... Rb2 {[%clk
0:00:23.9]} 61. Re8+ {[%clk 0:00:17.6]} 61... Kf4 {[%clk 0:00:23.5]} 62. Kf1
{[%clk 0:00:17.1]} 62... Rb1+ {[%clk 0:00:20.4]} 63. Kf2 {[%clk 0:00:17.3]}
63... Rb2+ {[%clk 0:00:20.8]} 64. Kf1 {[%clk 0:00:17.4]} 64... Rb1+ {[%clk
0:00:21.1]} 65. Kf2 {[%clk 0:00:17.4]} 65... Rb2+ {[%clk 0:00:21.6]} 66. Kf1
{[%clk 0:00:17.2]} 1/2-1/2

[Event "Late-Titled-Tuesday-Blitz-July-09-2024"]
[Site "Chess.com"]
[Date "2024.07.09"]
[Round "9"]
[White "GMRafpig"]
[Black "Bauman_Guy"]
[Result "0-1"]
[WhiteElo "2776"]
[BlackElo "2919"]
[TimeControl "180+1"]
[EndTime "15:44:40 PDT"]
[Termination "Bauman_Guy won by resignation"]

1. c4 {[%clk 0:03:00.9]} 1... Nf6 {[%clk 0:02:59.4]} 2. Nc3 {[%clk 0:03:00.2]}
2... e5 {[%clk 0:02:55.8]} 3. Nf3 {[%clk 0:02:59.5]} 3... Nc6 {[%clk 0:02:55.5]}
4. e4 {[%clk 0:02:59.7]} 4... g6 {[%clk 0:02:53.4]} 5. d4 {[%clk 0:02:51]} 5...
exd4 {[%clk 0:02:53.6]} 6. Nxd4 {[%clk 0:02:50.7]} 6... Bg7 {[%clk 0:02:53.2]}
7. Be3 {[%clk 0:02:39.2]} 7... O-O {[%clk 0:02:49]} 8. f3 {[%clk 0:02:35.6]}
8... d6 {[%clk 0:02:35.6]} 9. Qd2 {[%clk 0:02:28.9]} 9... Re8 {[%clk 0:02:33.6]}
10. O-O-O {[%clk 0:02:17.6]} 10... a6 {[%clk 0:02:32.7]} 11. h4 {[%clk 0:01:50]}
11... h5 {[%clk 0:02:30.4]} 12. Kb1 {[%clk 0:01:41.7]} 12... Bd7 {[%clk
0:02:27.6]} 13. Nxc6 {[%clk 0:01:10.2]} 13... bxc6 {[%clk 0:02:23.4]} 14. c5
{[%clk 0:01:09.8]} 14... d5 {[%clk 0:02:22.8]} 15. exd5 {[%clk 0:01:00.5]} 15...
cxd5 {[%clk 0:02:19.5]} 16. Bd4 {[%clk 0:00:58.1]} 16... Rb8 {[%clk 0:02:19.2]}
17. Bd3 {[%clk 0:00:54.6]} 17... a5 {[%clk 0:02:10.1]} 18. Rde1 {[%clk
0:00:45.8]} 18... Rb4 {[%clk 0:02:08.7]} 19. Rxe8+ {[%clk 0:00:43.8]} 19... Bxe8
{[%clk 0:02:05.4]} 20. Ne2 {[%clk 0:00:43.4]} 20... Bb5 {[%clk 0:02:01.8]} 21.
Bxb5 {[%clk 0:00:42.8]} 21... Rxb5 {[%clk 0:02:02.7]} 22. Qc3 {[%clk 0:00:42.5]}
22... Rb4 {[%clk 0:01:44.5]} 23. Rd1 {[%clk 0:00:41]} 23... c6 {[%clk
0:01:41.2]} 24. Nf4 {[%clk 0:00:33.5]} 24... Ne8 {[%clk 0:01:36.7]} 25. Bxg7
{[%clk 0:00:32.8]} 25... Nxg7 {[%clk 0:01:36.2]} 26. Nd3 {[%clk 0:00:26.5]}
26... Rc4 {[%clk 0:01:33.2]} 27. Qe1 {[%clk 0:00:26.8]} 27... Nf5 {[%clk
0:01:06.6]} 28. b3 {[%clk 0:00:26.9]} 28... Rd4 {[%clk 0:01:01.2]} 29. Ne5
{[%clk 0:00:25.8]} 29... Rxd1+ {[%clk 0:00:52]} 30. Qxd1 {[%clk 0:00:25.6]}
30... Qf6 {[%clk 0:00:52.7]} 31. Qe1 {[%clk 0:00:20.1]} 31... Qe6 {[%clk
0:00:51.2]} 32. f4 {[%clk 0:00:17.9]} 32... f6 {[%clk 0:00:50.4]} 33. Nf3 {[%clk
0:00:17]} 33... Qxe1+ {[%clk 0:00:35.5]} 34. Nxe1 {[%clk 0:00:16.9]} 34... Nxh4
{[%clk 0:00:36.2]} 35. a4 {[%clk 0:00:16.9]} 35... Kf7 {[%clk 0:00:35.8]} 36. b4
{[%clk 0:00:16.5]} 36... Ke7 {[%clk 0:00:34.4]} 37. bxa5 {[%clk 0:00:15.3]}
37... Kd7 {[%clk 0:00:34.8]} 38. a6 {[%clk 0:00:15.7]} 38... Kc8 {[%clk
0:00:34.7]} 39. Kc2 {[%clk 0:00:09.4]} 39... Kb8 {[%clk 0:00:33.1]} 40. Kc3
{[%clk 0:00:06.2]} 40... Ka7 {[%clk 0:00:32.4]} 41. Kb4 {[%clk 0:00:06.6]} 41...
Kxa6 {[%clk 0:00:32.8]} 42. a5 {[%clk 0:00:03.9]} 42... Nf5 {[%clk 0:00:25.2]}
43. Ka4 {[%clk 0:00:04.4]} 43... Ne3 {[%clk 0:00:19.8]} 44. Nd3 {[%clk
0:00:05.1]} 44... Nxg2 {[%clk 0:00:19.7]} 45. Nb4+ {[%clk 0:00:05.2]} 45... Kb7
{[%clk 0:00:20.4]} 46. a6+ {[%clk 0:00:05.8]} 46... Kc7 {[%clk 0:00:16.9]} 47.
Ka5 {[%clk 0:00:02.9]} 47... Nxf4 {[%clk 0:00:14.9]} 48. a7 {[%clk 0:00:02.1]}
48... Kb7 {[%clk 0:00:15.5]} 49. Nxc6 {[%clk 0:00:02.6]} 49... Ne6 {[%clk
0:00:15.6]} 50. a8=Q+ {[%clk 0:00:01.3]} 50... Kxa8 {[%clk 0:00:15.5]} 51. Kb6
{[%clk 0:00:02.2]} 51... h4 {[%clk 0:00:14.7]} 52. Ne7 {[%clk 0:00:02.8]} 52...
h3 {[%clk 0:00:14.9]} 53. c6 {[%clk 0:00:02.5]} 53... h2 {[%clk 0:00:15.2]} 54.
Nxd5 {[%clk 0:00:03.4]} 54... h1=Q {[%clk 0:00:15]} 55. c7 {[%clk 0:00:04.3]}
55... Nxc7 {[%clk 0:00:14]} 0-1

[Event "Late-Titled-Tuesday-Blitz-July-09-2024"]
[Site "Chess.com"]
[Date "2024.07.09"]
[Round "9"]
[White "MKlose11"]
[Black "bubeliang"]
[Result "1/2-1/2"]
[WhiteElo "2669"]
[BlackElo "2788"]
[TimeControl "180+1"]
[EndTime "15:44:46 PDT"]
[Termination "Game drawn - insufficient material"]

1. e4 {[%clk 0:02:55.3]} 1... c6 {[%clk 0:02:58.3]} 2. Nc3 {[%clk 0:02:54.8]}
2... d5 {[%clk 0:02:58]} 3. g3 {[%clk 0:02:55.7]} 3... dxe4 {[%clk 0:02:57.8]}
4. Nxe4 {[%clk 0:02:55]} 4... Nf6 {[%clk 0:02:54.7]} 5. Bg2 {[%clk 0:02:55]}
5... g6 {[%clk 0:02:50.7]} 6. d4 {[%clk 0:02:50.2]} 6... Bg7 {[%clk 0:02:49]} 7.
Ne2 {[%clk 0:02:50]} 7... O-O {[%clk 0:02:44.1]} 8. O-O {[%clk 0:02:49.7]} 8...
Nxe4 {[%clk 0:02:41.4]} 9. Bxe4 {[%clk 0:02:48.9]} 9... Nd7 {[%clk 0:02:42.3]}
10. c3 {[%clk 0:02:48.8]} 10... Nf6 {[%clk 0:02:42.4]} 11. Bg2 {[%clk
0:02:49.5]} 11... Re8 {[%clk 0:02:40.4]} 12. Re1 {[%clk 0:02:49.3]} 12... Be6
{[%clk 0:02:38.1]} 13. Nf4 {[%clk 0:02:45.9]} 13... Bd5 {[%clk 0:02:35.8]} 14.
Nxd5 {[%clk 0:02:45.8]} 14... cxd5 {[%clk 0:02:33.9]} 15. Bf4 {[%clk 0:02:39.5]}
15... e6 {[%clk 0:02:32.4]} 16. Be5 {[%clk 0:02:36.9]} 16... Nd7 {[%clk
0:02:32]} 17. Bxg7 {[%clk 0:02:36.8]} 17... Kxg7 {[%clk 0:02:32.9]} 18. Bf1
{[%clk 0:02:32.8]} 18... a6 {[%clk 0:02:32.4]} 19. a3 {[%clk 0:02:31.2]} 19...
b5 {[%clk 0:02:32.1]} 20. Bd3 {[%clk 0:02:30.8]} 20... Nb6 {[%clk 0:02:32]} 21.
f4 {[%clk 0:02:24.5]} 21... Nc4 {[%clk 0:02:31]} 22. Qe2 {[%clk 0:02:22.4]}
22... h5 {[%clk 0:02:27.5]} 23. Qf2 {[%clk 0:02:22.2]} 23... Qf6 {[%clk
0:02:25.6]} 24. Re2 {[%clk 0:02:20.8]} 24... Rab8 {[%clk 0:02:24.8]} 25. Kg2
{[%clk 0:02:17.1]} 25... a5 {[%clk 0:02:23.9]} 26. h3 {[%clk 0:02:13.7]} 26...
Rh8 {[%clk 0:02:19.9]} 27. Qf3 {[%clk 0:02:04.1]} 27... Nd6 {[%clk 0:02:17.6]}
28. g4 {[%clk 0:01:53.4]} 28... hxg4 {[%clk 0:02:16.6]} 29. hxg4 {[%clk
0:01:53.7]} 29... Rh4 {[%clk 0:02:11.3]} 30. Rh1 {[%clk 0:01:38.4]} 30... Rbh8
{[%clk 0:02:09.7]} 31. Ree1 {[%clk 0:01:32.1]} 31... g5 {[%clk 0:01:44.1]} 32.
Rxh4 {[%clk 0:01:26.9]} 32... Rxh4 {[%clk 0:01:42]} 33. Rf1 {[%clk 0:01:13.9]}
33... Qh6 {[%clk 0:01:30.4]} 34. Qg3 {[%clk 0:01:11.9]} 34... gxf4 {[%clk
0:01:16.3]} 35. Qxf4 {[%clk 0:01:05.2]} 35... Qxf4 {[%clk 0:01:12.8]} 36. Rxf4
{[%clk 0:01:06.1]} 36... f6 {[%clk 0:01:09.8]} 37. Kg3 {[%clk 0:01:01]} 37...
Rh1 {[%clk 0:01:09.4]} 38. Rf2 {[%clk 0:00:52.9]} 38... Rd1 {[%clk 0:01:06.5]}
39. Bc2 {[%clk 0:00:47.3]} 39... Re1 {[%clk 0:01:03.8]} 40. Bd3 {[%clk
0:00:45.2]} 40... Re3+ {[%clk 0:00:56.9]} 41. Rf3 {[%clk 0:00:45.6]} 41... Rxf3+
{[%clk 0:00:57.3]} 42. Kxf3 {[%clk 0:00:46.5]} 42... Nc4 {[%clk 0:00:58]} 43.
Kf4 {[%clk 0:00:43.6]} 43... e5+ {[%clk 0:00:27.6]} 44. dxe5 {[%clk 0:00:40.9]}
44... fxe5+ {[%clk 0:00:28.5]} 45. Kf5 {[%clk 0:00:39.7]} 45... e4 {[%clk
0:00:28.3]} 46. Be2 {[%clk 0:00:39.4]} 46... Nxb2 {[%clk 0:00:27.5]} 47. Bxb5
{[%clk 0:00:33.7]} 47... Nd1 {[%clk 0:00:13.4]} 48. c4 {[%clk 0:00:30.3]} 48...
dxc4 {[%clk 0:00:14.3]} 49. Kxe4 {[%clk 0:00:06.2]} 49... Nc3+ {[%clk
0:00:10.7]} 50. Kd4 {[%clk 0:00:06.6]} 50... Nxb5+ {[%clk 0:00:11.3]} 51. Kxc4
{[%clk 0:00:07.3]} 51... Nxa3+ {[%clk 0:00:11.6]} 52. Kb3 {[%clk 0:00:07.7]}
52... Nc4 {[%clk 0:00:06.1]} 53. Kxc4 {[%clk 0:00:06.9]} 53... Kg6 {[%clk
0:00:04.8]} 54. Kb5 {[%clk 0:00:07]} 54... Kg5 {[%clk 0:00:05.7]} 55. Ka4 {[%clk
0:00:07.5]} 55... Kxg4 {[%clk 0:00:06.6]} 56. Kxa5 {[%clk 0:00:08.4]} 1/2-1/2

[Event "Late-Titled-Tuesday-Blitz-July-09-2024"]
[Site "Chess.com"]
[Date "2024.07.09"]
[Round "9"]
[White "GAO"]
[Black "chessuriel"]
[Result "1/2-1/2"]
[WhiteElo "2435"]
[BlackElo "2355"]
[TimeControl "180+1"]
[EndTime "15:44:46 PDT"]
[Termination "Game drawn by stalemate"]

1. e4 {[%clk 0:01:51.6]} 1... c5 {[%clk 0:03:00.9]} 2. Nf3 {[%clk 0:01:51.6]}
2... d6 {[%clk 0:03:00.5]} 3. d4 {[%clk 0:01:51.9]} 3... cxd4 {[%clk 0:03:01.4]}
4. Qxd4 {[%clk 0:01:52.2]} 4... Nf6 {[%clk 0:03:02]} 5. h3 {[%clk 0:01:51.9]}
5... Nc6 {[%clk 0:03:02.4]} 6. Qe3 {[%clk 0:01:52.3]} 6... Bd7 {[%clk
0:03:03.1]} 7. Be2 {[%clk 0:01:52.8]} 7... g6 {[%clk 0:03:03.2]} 8. O-O {[%clk
0:01:53.4]} 8... Bg7 {[%clk 0:03:03.5]} 9. Rd1 {[%clk 0:01:54.1]} 9... Qa5
{[%clk 0:03:02.5]} 10. c4 {[%clk 0:01:53.9]} 10... O-O {[%clk 0:03:01.5]} 11.
Nc3 {[%clk 0:01:53.6]} 11... Nb4 {[%clk 0:02:59.2]} 12. Qd2 {[%clk 0:01:49.6]}
12... Bc6 {[%clk 0:02:56]} 13. a3 {[%clk 0:01:40.6]} 13... Na6 {[%clk
0:02:53.7]} 14. Qc2 {[%clk 0:01:38.5]} 14... Qc7 {[%clk 0:02:44.2]} 15. Bg5
{[%clk 0:01:30.5]} 15... Nc5 {[%clk 0:02:39.6]} 16. Bxf6 {[%clk 0:01:28.9]}
16... Bxf6 {[%clk 0:02:38.5]} 17. Nd2 {[%clk 0:01:24.6]} 17... Ne6 {[%clk
0:02:37.2]} 18. Bf1 {[%clk 0:01:22.6]} 18... b6 {[%clk 0:02:20.6]} 19. Rac1
{[%clk 0:01:16.3]} 19... Qb7 {[%clk 0:02:18.7]} 20. f3 {[%clk 0:01:11.3]} 20...
Nf4 {[%clk 0:02:13.7]} 21. Nb3 {[%clk 0:01:03.1]} 21... Rac8 {[%clk 0:02:07.7]}
22. Nd4 {[%clk 0:01:02.8]} 22... Bd7 {[%clk 0:02:02.7]} 23. Nce2 {[%clk
0:00:54.3]} 23... Ne6 {[%clk 0:01:56.8]} 24. Nxe6 {[%clk 0:00:53.1]} 24... Bxe6
{[%clk 0:01:57.7]} 25. b3 {[%clk 0:00:52.2]} 25... b5 {[%clk 0:01:57.1]} 26. Nd4
{[%clk 0:00:52.7]} 26... Qb6 {[%clk 0:01:49.4]} 27. Qf2 {[%clk 0:00:50.2]} 27...
Bxd4 {[%clk 0:01:40.5]} 28. Qxd4 {[%clk 0:00:49.4]} 28... Qxd4+ {[%clk
0:01:39.3]} 29. Rxd4 {[%clk 0:00:50.3]} 29... Rc7 {[%clk 0:01:31.7]} 30. Rcd1
{[%clk 0:00:47.9]} 30... bxc4 {[%clk 0:01:31]} 31. Bxc4 {[%clk 0:00:48.3]} 31...
Bxc4 {[%clk 0:01:30.6]} 32. Rxc4 {[%clk 0:00:48.4]} 32... Rxc4 {[%clk
0:01:29.9]} 33. bxc4 {[%clk 0:00:48.5]} 33... Rc8 {[%clk 0:01:30.5]} 34. Rc1
{[%clk 0:00:49]} 34... Rc5 {[%clk 0:01:30.2]} 35. Kf2 {[%clk 0:00:48.7]} 35...
Kg7 {[%clk 0:01:29.7]} 36. Ke3 {[%clk 0:00:48.6]} 36... Kf6 {[%clk 0:01:29.4]}
37. Kd4 {[%clk 0:00:49.1]} 37... Ra5 {[%clk 0:01:24.6]} 38. Rc3 {[%clk
0:00:48.8]} 38... Kg5 {[%clk 0:01:24]} 39. g3 {[%clk 0:00:48.5]} 39... h5 {[%clk
0:01:23.3]} 40. c5 {[%clk 0:00:45.8]} 40... dxc5+ {[%clk 0:01:04.8]} 41. Rxc5+
{[%clk 0:00:45.9]} 41... Rxc5 {[%clk 0:01:05.1]} 42. h4+ {[%clk 0:00:44.9]}
42... Kf6 {[%clk 0:01:02.9]} 43. Kxc5 {[%clk 0:00:45.8]} 43... Ke5 {[%clk
0:01:03.1]} 44. Kb5 {[%clk 0:00:38.3]} 44... f5 {[%clk 0:01:01.6]} 45. exf5
{[%clk 0:00:20.2]} 45... gxf5 {[%clk 0:01:01.6]} 46. Ka6 {[%clk 0:00:20.7]}
46... f4 {[%clk 0:01:02]} 47. gxf4+ {[%clk 0:00:19.4]} 47... Kxf4 {[%clk
0:01:01.9]} 48. Kxa7 {[%clk 0:00:20.3]} 48... Kxf3 {[%clk 0:01:01.7]} 49. Kb6
{[%clk 0:00:21]} 49... e5 {[%clk 0:01:01.7]} 50. a4 {[%clk 0:00:21.4]} 50... e4
{[%clk 0:01:01.2]} 51. a5 {[%clk 0:00:22.3]} 51... e3 {[%clk 0:01:00.8]} 52. a6
{[%clk 0:00:23.2]} 52... e2 {[%clk 0:01:00.3]} 53. a7 {[%clk 0:00:24.1]} 53...
e1=Q {[%clk 0:00:58.6]} 54. a8=Q+ {[%clk 0:00:25]} 54... Qe4 {[%clk 0:00:53.6]}
55. Qf8+ {[%clk 0:00:20.2]} 55... Kg3 {[%clk 0:00:50.1]} 56. Kc5 {[%clk
0:00:16.9]} 56... Qxh4 {[%clk 0:00:44]} 57. Kd5 {[%clk 0:00:14.4]} 57... Qg5+
{[%clk 0:00:42.1]} 58. Ke4 {[%clk 0:00:12.5]} 58... Qg4+ {[%clk 0:00:40.2]} 59.
Ke3 {[%clk 0:00:11.1]} 59... Qe6+ {[%clk 0:00:39.8]} 60. Kd2 {[%clk 0:00:10.4]}
60... h4 {[%clk 0:00:37.5]} 61. Qg7+ {[%clk 0:00:09.8]} 61... Qg4 {[%clk
0:00:36.2]} 62. Qxg4+ {[%clk 0:00:04.4]} 62... Kxg4 {[%clk 0:00:35.6]} 63. Ke2
{[%clk 0:00:05.3]} 63... Kg3 {[%clk 0:00:35.5]} 64. Kf1 {[%clk 0:00:06.2]} 64...
Kh2 {[%clk 0:00:35.6]} 65. Kf2 {[%clk 0:00:06.6]} 65... h3 {[%clk 0:00:35.2]}
66. Kf1 {[%clk 0:00:07]} 66... Kh1 {[%clk 0:00:30.7]} 67. Kf2 {[%clk 0:00:07]}
67... Kh2 {[%clk 0:00:31]} 68. Kf1 {[%clk 0:00:07.3]} 68... Kg3 {[%clk
0:00:31.9]} 69. Kg1 {[%clk 0:00:07.6]} 69... h2+ {[%clk 0:00:30.1]} 70. Kh1
{[%clk 0:00:08.5]} 70... Kh3 {[%clk 0:00:30.5]} 1/2-1/2